fUST/lending_fUST_20240721
["ID","MTS","AMOUNT","RATE_DAILY","PERIOD"]
[332748326,1721501453639,-500.0,0.00014246,2]
[332748327,1721501453648,-538.03,0.00014246,2]
[332748328,1721501453657,-500.0,0.00014246,2]
[332748329,1721501453667,-500.0,0.00014246,2]
[332748330,1721501453676,-877.92,0.00014246,2]
[332748331,1721501453685,-1386.39,0.00014246,2]
[332748332,1721501453694,-850.61,0.00014246,2]
[332748333,1721501453703,-538.12,0.00014246,2]
[332748334,1721501453712,-500.0,0.00014246,2]
[332748335,1721501453722,-2578.48,0.00014246,2]
[332748336,1721501453731,-500.0,0.00014246,2]
[332748337,1721501453740,-500.0,0.00014246,2]
[332748338,1721501453749,-500.0,0.00014246,2]
[332748339,1721501453758,-519.01,0.00014246,2]
[332748340,1721501453767,-500.0,0.00014246,2]
[332748341,1721501453776,-1782.45,0.00014246,2]
[332748342,1721501453787,-559.3,0.00014246,2]
[332748343,1721501453797,-500.0,0.00014246,2]
[332748344,1721501453807,-670.52,0.00014246,2]
[332748345,1721501453817,-500.0,0.00014246,2]
[332748346,1721501453829,-500.0,0.00014246,2]
[332748347,1721501453840,-500.0,0.00014246,2]
[332748348,1721501453851,-508.54564734,0.00014246,2]
[332748349,1721501453862,-2257.63,0.00014246,2]
[332748350,1721501453874,-921.09,0.00014246,2]
[332748351,1721501453885,-161.72252877,0.00014246,2]
[332748352,1721501453895,-549.5,0.00014246,2]
[332748353,1721501453906,-3096.21,0.00014246,2]
[332748354,1721501453915,-595.13,0.00014246,2]
[332748355,1721501453927,-500.0,0.00014246,2]
[332748356,1721501453939,-500.0,0.00014246,2]
[332748357,1721501453949,-1171.4,0.00014246,2]
[332748358,1721501453959,-500.0,0.00014246,2]
[332748359,1721501453970,-500.0,0.00014246,2]
[332748360,1721501453981,-599.45,0.00014246,2]
[332748361,1721501453992,-500.0,0.00014246,2]
[332748362,1721501454002,-714.05,0.00014246,2]
[332748363,1721501454014,-3478.77,0.00014246,2]
[332748364,1721501454024,-504.01346212,0.00014246,2]
[332748365,1721501454035,-929.7,0.00014246,2]
[332748366,1721501454045,-500.0,0.00014246,2]
[332748367,1721501454055,-500.0,0.00014246,2]
[332748368,1721501454066,-1051.01,0.00014246,2]
[332748369,1721501454076,-819.96,0.00014246,2]
[332748370,1721501454088,-500.0,0.00014246,2]
[332748371,1721501454098,-620.43,0.00014246,2]
[332748372,1721501454108,-500.0,0.00014246,2]
[332748373,1721501454118,-644.82,0.00014246,2]
[332748374,1721501454127,-500.0,0.00014246,2]
[332748375,1721501454139,-1176.28,0.00014246,2]
[332748376,1721501454151,-500.0,0.00014246,2]
[332748377,1721501454162,-500.0,0.00014246,2]
[332748378,1721501454172,-500.0,0.00014246,2]
[332748379,1721501454182,-1042.91,0.00014246,2]
[332748380,1721501454192,-500.0,0.00014246,2]
[332748381,1721501454201,-688.18,0.00014246,2]
[332748382,1721501454211,-500.0,0.00014246,2]
[332748383,1721501454220,-521.161017,0.00014246,2]
[332748384,1721501454229,-612.0,0.00014246,2]
[332748385,1721501454238,-539.8,0.00014246,2]
[332748386,1721501454248,-500.0,0.00014246,2]
[332748387,1721501454258,-521.161017,0.00014246,2]
[332748388,1721501454270,-500.0,0.00014246,2]
[332748389,1721501454282,-500.0,0.00014246,2]
[332748390,1721501454291,-500.0,0.00014246,2]
[332748391,1721501454301,-609.35,0.00014246,2]
[332748392,1721501454310,-500.0,0.00014246,2]
[332748393,1721501454320,-500.0,0.00014246,2]
[332748394,1721501454330,-500.0,0.00014246,2]
[332748395,1721501454340,-500.0,0.00014246,2]
[332748396,1721501454349,-1890.28,0.00014246,2]
[332748397,1721501454358,-595.19,0.00014246,2]
[332748398,1721501454371,-500.0,0.00014246,2]
[332748399,1721501454380,-897.56,0.00014246,2]
[332748400,1721501454389,-1463.89,0.00014246,2]
[332748401,1721501454398,-4286.48,0.00014246,2]
[332748402,1721501454409,-575.81,0.00014246,2]
[332748403,1721501454418,-1468.94,0.00014246,2]
[332748404,1721501454427,-813.45,0.00014246,2]
[332748405,1721501454438,-656.43,0.00014246,2]
[332748406,1721501454448,-558.31,0.00014246,2]
[332748407,1721501454458,-791.71,0.00014246,2]
[332748408,1721501454467,-1282.95,0.00014246,2]
[332748409,1721501454476,-500.0,0.00014246,2]
[332748410,1721501454485,-500.0,0.00014246,2]
[332748411,1721501454494,-594.15,0.00014246,2]
[332748412,1721501454504,-500.0,0.00014246,2]
[332748413,1721501454513,-500.0,0.00014246,2]
[332748414,1721501454522,-1804.4,0.00014246,2]
[332748415,1721501454531,-500.0,0.00014246,2]
[332748416,1721501454540,-946.79,0.00014246,2]
[332748417,1721501454549,-1909.86,0.00014246,2]
[332748418,1721501454558,-500.0,0.00014246,2]
[332748419,1721501454567,-500.0,0.00014246,2]
[332748420,1721501454576,-500.0,0.00014246,2]
[332748421,1721501454585,-2125.36,0.00014246,2]
[332748422,1721501454597,-500.0,0.00014246,2]
[332748423,1721501454607,-500.0,0.00014246,2]
[332748424,1721501454619,-1839.8,0.00014246,2]
[332748425,1721501454631,-500.0,0.00014246,2]
[332748426,1721501454641,-500.0,0.00014246,2]
[332748427,1721501454650,-500.0,0.00014246,2]
[332748428,1721501454661,-2168.23,0.00014246,2]
[332748429,1721501454671,-2063.58,0.00014246,2]
[332748430,1721501454682,-500.0,0.00014246,2]
[332748431,1721501454693,-500.0,0.00014246,2]
[332748432,1721501454705,-861.65,0.00014246,2]
[332748433,1721501454715,-955.87,0.00014246,2]
[332748434,1721501454724,-500.0,0.00014246,2]
[332748435,1721501454733,-500.0,0.00014246,2]
[332748436,1721501454743,-2734.19,0.00014246,2]
[332748437,1721501454752,-10858.16,0.00014246,2]
[332748438,1721501454761,-500.0,0.00014246,2]
[332748439,1721501454770,-1766.9,0.00014246,2]
[332748440,1721501454780,-606.12,0.00014246,2]
[332748441,1721501454789,-520.63,0.00014246,2]
[332748442,1721501454800,-415.26668233,0.00014246,2]
[332748443,1721501454811,-500.0,0.00014246,2]
[332748444,1721501454822,-391.90915622,0.00014246,2]
[332748445,1721501454832,-500.0,0.00014246,2]
[332748446,1721501454843,-500.0,0.00014246,2]
[332748447,1721501454852,-816.21,0.00014246,2]
[332748448,1721501454862,-500.0,0.00014246,2]
[332748449,1721501454871,-1367.5,0.00014246,2]
[332748450,1721501454880,-500.0,0.00014246,2]
[332748451,1721501454890,-307.19556289,0.00014246,2]
[332748452,1721501454900,-721.38,0.00014246,2]
[332748453,1721501454910,-500.0,0.00014246,2]
[332748454,1721501454919,-500.0,0.00014246,2]
[332748455,1721501454928,-1791.92,0.00014246,2]
[332748456,1721501454937,-504.399664,0.00014246,2]
[332748457,1721501454946,-500.0,0.00014246,2]
[332748458,1721501454956,-500.0,0.00014246,2]
[332748459,1721501454966,-1545.17,0.00014246,2]
[332748460,1721501454976,-724.24,0.00014246,2]
[332748461,1721501454986,-870.9,0.00014246,2]
[332748462,1721501454996,-1045.23,0.00014246,2]
[332748463,1721501455005,-950.44,0.00014246,2]
[332748464,1721501455015,-555.93805008,0.00014246,2]
[332748465,1721501455024,-2054.12,0.00014246,2]
[332748466,1721501455034,-549.03428632,0.00014246,2]
[332748467,1721501455043,-500.0,0.00014246,2]
[332748468,1721501455053,-500.0,0.00014246,2]
[332748469,1721501455062,-796.91,0.00014246,2]
[332748470,1721501455072,-2697.92,0.00014246,2]
[332748471,1721501455081,-1172.73,0.00014246,2]
[332748472,1721501455091,-526.21688811,0.00014246,2]
[332748473,1721501455101,-500.0,0.00014246,2]
[332748474,1721501455110,-512.08117975,0.00014246,2]
[332748475,1721501455120,-155.98610733,0.00014246,2]
[332748476,1721501455129,-2158.72,0.00014246,2]
[332748477,1721501455139,-500.0,0.00014246,2]
[332748478,1721501455149,-741.17,0.00014246,2]
[332748479,1721501455158,-500.0,0.00014246,2]
[332748480,1721501455167,-151.0,0.00014246,2]
[332748481,1721501455177,-298.395789,0.00014246,2]
[332748482,1721501455186,-1045.53,0.00014246,2]
[332748483,1721501455195,-513.01,0.00014246,2]
[332748484,1721501455205,-959.91,0.00014246,2]
[332748485,1721501455214,-921.43,0.00014246,2]
[332748486,1721501455223,-500.0,0.00014246,2]
[332748487,1721501455232,-500.0,0.00014246,2]
[332748488,1721501455241,-500.0,0.00014246,2]
[332748489,1721501455250,-500.0,0.00014246,2]
[332748490,1721501455259,-3848.9,0.00014246,2]
[332748491,1721501455269,-930.37,0.00014246,2]
[332748492,1721501455278,-3002.39,0.00014246,2]
[332748493,1721501455288,-1334.16,0.00014246,2]
[332748494,1721501455298,-9974.88,0.00014246,2]
[332748495,1721501455308,-500.0,0.00014246,2]
[332748496,1721501455317,-825.15,0.00014246,2]
[332748497,1721501455326,-763.32,0.00014246,2]
[332748498,1721501455335,-500.0,0.00014246,2]
[332748499,1721501455345,-682.11,0.00014246,2]
[332748500,1721501455355,-653.11,0.00014246,2]
[332748501,1721501455366,-3024.55,0.00014246,2]
[332748502,1721501455377,-500.0,0.00014246,2]
[332748503,1721501455388,-1226.56,0.00014246,2]
[332748504,1721501455399,-503.50562691,0.00014246,2]
[332748505,1721501455410,-2628.42,0.00014246,2]
[332748506,1721501455419,-677.36,0.00014246,2]
[332748507,1721501455428,-505.68,0.00014246,2]
[332748508,1721501455438,-500.0,0.00014246,2]
[332748509,1721501455448,-678.49,0.00014246,2]
[332748510,1721501455457,-3611.41,0.00014246,2]
[332748511,1721501455467,-500.0,0.00014246,2]
[332748512,1721501455476,-2356.17,0.00014246,2]
[332748513,1721501455486,-500.0,0.00014246,2]
[332748514,1721501455496,-1048.68,0.00014246,2]
[332748515,1721501455507,-4801.01,0.00014246,2]
[332748516,1721501455517,-521.4783236,0.00014246,2]
[332748517,1721501455527,-500.0,0.00014246,2]
[332748518,1721501455537,-626.75,0.00014246,2]
[332748519,1721501455546,-5614.66,0.00014246,2]
[332748520,1721501455557,-1167.12,0.00014246,2]
[332748521,1721501455567,-500.0,0.00014246,2]
[332748522,1721501455578,-1003.63,0.00014246,2]
[332748523,1721501455589,-2182.76,0.00014246,2]
[332748524,1721501455598,-500.0,0.00014246,2]
[332748525,1721501455607,-500.0,0.00014246,2]
[332748526,1721501455617,-500.0,0.00014246,2]
[332748527,1721501455626,-500.0,0.00014246,2]
[332748528,1721501455636,-500.0,0.00014246,2]
[332748529,1721501455645,-500.0,0.00014246,2]
[332748530,1721501455655,-500.0,0.00014246,2]
[332748531,1721501455664,-500.0,0.00014246,2]
[332748532,1721501455674,-596.66,0.00014246,2]
[332748533,1721501455684,-500.0,0.00014246,2]
[332748534,1721501455693,-500.0,0.00014246,2]
[332748535,1721501455702,-1876.24,0.00014246,2]
[332748536,1721501455714,-500.0,0.00014246,2]
[332748537,1721501455724,-922.66,0.00014246,2]
[332748538,1721501455733,-500.0,0.00014246,2]
[332748539,1721501455743,-2660.77,0.00014246,2]
[332748540,1721501455755,-769.49,0.00014246,2]
[332748541,1721501455764,-500.0,0.00014246,2]
[332748542,1721501455776,-500.0,0.00014246,2]
[332748543,1721501455786,-601.56,0.00014246,2]
[332748544,1721501455798,-2479.41,0.00014246,2]
[332748545,1721501455809,-9525.09,0.00014246,2]
[332748546,1721501455819,-500.0,0.00014246,2]
[332748547,1721501455830,-500.0,0.00014246,2]
[332748548,1721501455840,-353.74643827,0.00014246,2]
[332748549,1721501455851,-1594.52,0.00014246,2]
[332748550,1721501455863,-170.72705745,0.00014246,2]
[332748551,1721501455875,-479.02754092,0.00014246,2]
[332748552,1721501455885,-2915.71,0.00014246,2]
[332748553,1721501455896,-505.99,0.00014246,2]
[332748554,1721501455907,-1164.01,0.00014246,2]
[332748555,1721501455916,-500.0,0.00014246,2]
[332748556,1721501455927,-500.0,0.00014246,2]
[332748557,1721501455938,-650.96,0.00014246,2]
[332748558,1721501455949,-5451.22,0.00014246,2]
[332748559,1721501455960,-251.91577685,0.00014246,2]
[332748560,1721501455970,-2974.58,0.00014246,2]
[332748561,1721501455979,-500.0,0.00014246,2]
[332748562,1721501455989,-500.0,0.00014246,2]
[332748563,1721501456001,-19190.55,0.00014246,2]
[332748564,1721501456013,-718.79,0.00014246,2]
[332748565,1721501456023,-500.0,0.00014246,2]
[332748566,1721501456033,-2305.92,0.00014246,2]
[332748567,1721501456043,-500.0,0.00014246,2]
[332748568,1721501456052,-500.0,0.00014246,2]
[332748569,1721501456062,-6714.24,0.00014246,2]
[332748570,1721501456071,-150.0,0.00014246,2]
[332748571,1721501456081,-500.0,0.00014246,2]
[332748572,1721501456091,-4166.01,0.00014246,2]
[332748573,1721501456101,-643.3,0.00014246,2]
[332748574,1721501456110,-1529.29,0.00014246,2]
[332748575,1721501456120,-500.0,0.00014246,2]
[332748576,1721501456131,-500.0,0.00014246,2]
[332748577,1721501456141,-3139.22,0.00014246,2]
[332748578,1721501456151,-2186.15,0.00014246,2]
[332748579,1721501456162,-500.0,0.00014246,2]
[332748580,1721501456173,-5219.53,0.00014246,2]
[332748581,1721501456183,-500.0,0.00014246,2]
[332748582,1721501456194,-681.17,0.00014246,2]
[332748583,1721501456205,-1202.04,0.00014246,2]
[332748584,1721501456215,-500.0,0.00014246,2]
[332748585,1721501456225,-500.0,0.00014246,2]
[332748586,1721501456234,-3387.15,0.00014246,2]
[332748587,1721501456244,-12551.18,0.00014246,2]
[332748588,1721501456254,-500.0,0.00014246,2]
[332748589,1721501456264,-789.3,0.00014246,2]
[332748590,1721501456273,-494.35585,0.00014246,2]
[332748591,1721501456285,-494.35585,0.00014246,2]
[332748592,1721501456296,-800.39,0.00014246,2]
[332748593,1721501456308,-508.80795726,0.00014246,2]
[332748594,1721501456319,-5622.12,0.00014246,2]
[332748595,1721501456329,-2178.19,0.00014246,2]
[332748596,1721501456339,-494.35585,0.00014246,2]
[332748597,1721501456348,-494.35585,0.00014246,2]
[332748598,1721501456362,-636.52390275,0.00014246,2]
[332748599,1721501456380,-2969.09,0.00014246,2]
[332748600,1721501456391,-500.0,0.00014246,2]
[332748601,1721501456401,-624.9,0.00014246,2]
[332748602,1721501456413,-500.0,0.00014246,2]
[332748603,1721501456422,-1165.16,0.00014246,2]
[332748604,1721501456433,-554.43944664,0.00014246,2]
[332748605,1721501456444,-500.0,0.00014246,2]
[332748606,1721501456454,-500.0,0.00014246,2]
[332748607,1721501456465,-500.0,0.00014246,2]
[332748608,1721501456475,-381.21198987,0.00014246,2]
[332748609,1721501456484,-500.0,0.00014246,2]
[332748610,1721501456493,-500.0,0.00014246,2]
[332748611,1721501456503,-562.7,0.00014246,2]
[332748612,1721501456512,-3487.3,0.00014246,2]
[332748613,1721501456522,-500.0,0.00014246,2]
[332748614,1721501456532,-500.0,0.00014246,2]
[332748615,1721501456541,-1491.24,0.00014246,2]
[332748616,1721501456552,-453.62559309,0.00014246,2]
[332748617,1721501456562,-898.11,0.00014246,2]
[332748618,1721501456573,-500.0,0.00014246,2]
[332748619,1721501456582,-3266.7,0.00014246,2]
[332748620,1721501456591,-500.0,0.00014246,2]
[332748621,1721501456601,-2917.77,0.00014246,2]
[332748622,1721501456611,-500.0,0.00014246,2]
[332748623,1721501456621,-500.0,0.00014246,2]
[332748624,1721501456630,-500.0,0.00014246,2]
[332748625,1721501456640,-500.0,0.00014246,2]
[332748626,1721501456650,-500.0,0.00014246,2]
[332748627,1721501456659,-1240.33,0.00014246,2]
[332748628,1721501456668,-1186.42,0.00014246,2]
[332748629,1721501456677,-594.43,0.00014246,2]
[332748630,1721501456688,-524.66,0.00014246,2]
[332748631,1721501456697,-500.0,0.00014246,2]
[332748632,1721501456706,-500.0,0.00014246,2]
[332748633,1721501456716,-500.0,0.00014246,2]
[332748634,1721501456726,-500.0,0.00014246,2]
[332748635,1721501456736,-15542.84,0.00014246,2]
[332748636,1721501456747,-173.75511392,0.00014246,2]
[332748637,1721501456757,-1810.39,0.00014246,2]
[332748638,1721501456767,-500.0,0.00014246,2]
[332748639,1721501456777,-1627.8,0.00014246,2]
[332748640,1721501456787,-500.0,0.00014246,2]
[332748641,1721501456799,-1267.33,0.00014246,2]
[332748642,1721501456810,-500.0,0.00014246,2]
[332748643,1721501456820,-500.0,0.00014246,2]
[332748644,1721501456830,-1165.62,0.00014246,2]
[332748645,1721501456840,-500.0,0.00014246,2]
[332748646,1721501456850,-500.0,0.00014246,2]
[332748647,1721501456860,-1594.87,0.00014246,2]
[332748648,1721501456870,-500.0,0.00014246,2]
[332748649,1721501456880,-529.69,0.00014246,2]
[332748650,1721501456889,-1593.24,0.00014246,2]
[332748651,1721501456899,-961.48,0.00014246,2]
[332748652,1721501456908,-500.0,0.00014246,2]
[332748653,1721501456918,-961.82,0.00014246,2]
[332748654,1721501456928,-503.98,0.00014246,2]
[332748655,1721501456938,-500.0,0.00014246,2]
[332748656,1721501456949,-2831.62,0.00014246,2]
[332748657,1721501456958,-1152.03,0.00014246,2]
[332748658,1721501456968,-15614.35,0.00014246,2]
[332748659,1721501456977,-500.0,0.00014246,2]
[332748660,1721501456987,-10864.83,0.00014246,2]
[332748661,1721501456997,-500.0,0.00014246,2]
[332748662,1721501457006,-500.0,0.00014246,2]
[332748663,1721501457016,-352.51834169,0.00014246,2]
[332748664,1721501457026,-580.38,0.00014246,2]
[332748665,1721501457036,-983.82,0.00014246,2]
[332748666,1721501457046,-2374.03,0.00014246,2]
[332748667,1721501457056,-750.0,0.00014247,2]
[332748668,1721501457066,-385.9910749,0.00014411,2]
[332748669,1721501457075,-500.0,0.0001452,2]
[332748670,1721501457085,-500.0,0.0001452,2]
[332748671,1721501457095,-500.0,0.0001452,2]
[332748672,1721501457105,-500.0,0.0001452,2]
[332748673,1721501457115,-500.0,0.0001452,2]
[332748674,1721501457125,-690.28,0.0001452,2]
[332748675,1721501457135,-621.70287847,0.0001452,2]
[332748676,1721501457145,-500.0,0.0001452,2]
[332748677,1721501457154,-521.24,0.0001452,2]
[332748678,1721501457165,-563.29,0.0001452,2]
[332748679,1721501457175,-633.4,0.0001452,2]
[332748680,1721501457184,-723.75,0.0001452,2]
[332748681,1721501457194,-500.0,0.0001452,2]
[332748682,1721501457203,-2392.2,0.0001452,2]
[332748683,1721501457213,-2399.27,0.0001452,2]
[332748684,1721501457223,-500.0,0.0001452,2]
[332748685,1721501457232,-500.0,0.0001452,2]
[332748686,1721501457242,-500.0,0.0001452,2]
[332748687,1721501457251,-642.9,0.0001452,2]
[332748688,1721501457261,-500.0,0.0001452,2]
[332748689,1721501457270,-758.22,0.0001452,2]
[332748690,1721501457279,-500.0,0.0001452,2]
[332748691,1721501457289,-500.0,0.0001452,2]
[332748692,1721501457298,-500.0,0.0001452,2]
[332748693,1721501457309,-500.0,0.0001452,2]
[332748694,1721501457319,-1415.97,0.0001452,2]
[332748695,1721501457328,-500.0,0.0001452,2]
[332748696,1721501457338,-500.0,0.0001452,2]
[332748697,1721501457347,-500.0,0.0001452,2]
[332748698,1721501457357,-500.0,0.0001452,2]
[332748699,1721501457369,-500.0,0.0001452,2]
[332748700,1721501457378,-500.0,0.0001452,2]
[332748701,1721501457388,-912.35,0.0001452,2]
[332748702,1721501457397,-518.45285291,0.0001452,2]
[332748703,1721501457408,-423.73046473,0.0001452,2]
[332748704,1721501457418,-500.0,0.0001452,2]
[332748705,1721501457428,-1189.46,0.0001452,2]
[332748706,1721501457439,-617.69,0.0001452,2]
[332748707,1721501457449,-500.0,0.0001452,2]
[332748708,1721501457459,-500.0,0.0001452,2]
[332748709,1721501457468,-821.95,0.0001452,2]
[332748710,1721501457478,-500.0,0.0001452,2]
[332748711,1721501457488,-500.0,0.0001452,2]
[332748712,1721501457498,-693.44,0.0001452,2]
[332748713,1721501457508,-157.78037707,0.0001452,2]
[332748714,1721501457518,-500.0,0.0001452,2]
[332748715,1721501457527,-500.0,0.0001452,2]
[332748716,1721501457537,-571.92256385,0.0001452,2]
[332748717,1721501457547,-516.51303496,0.0001452,2]
[332748718,1721501457557,-558.13,0.0001452,2]
[332748719,1721501457746,-500.0,0.0001452,2]
[332748720,1721501457756,-500.0,0.0001452,2]
[332748721,1721501457766,-539.6,0.0001452,2]
[332748722,1721501457775,-500.0,0.0001452,2]
[332748723,1721501457785,-500.0,0.0001452,2]
[332748724,1721501457794,-500.0,0.0001452,2]
[332748725,1721501457805,-2385.11,0.0001452,2]
[332748726,1721501457814,-1025.73,0.0001452,2]
[332748727,1721501457823,-500.0,0.0001452,2]
[332748728,1721501457834,-1085.97,0.0001452,2]
[332748729,1721501457843,-500.0,0.0001452,2]
[332748730,1721501457852,-500.0,0.0001452,2]
[332748731,1721501457862,-500.0,0.0001452,2]
[332748732,1721501457871,-892.81,0.0001452,2]
[332748733,1721501457881,-2781.42,0.0001452,2]
[332748734,1721501457890,-500.0,0.0001452,2]
[332748735,1721501457899,-520.8514786,0.0001452,2]
[332748736,1721501457908,-500.0,0.0001452,2]
[332748737,1721501457917,-500.0,0.0001452,2]
[332748738,1721501457927,-538.74851506,0.0001452,2]
[332748739,1721501457936,-500.0,0.0001452,2]
[332748740,1721501457946,-500.0,0.0001452,2]
[332748741,1721501457955,-499.99859316,0.0001452,2]
[332748742,1721501457964,-500.0,0.0001452,2]
[332748743,1721501457973,-626.5,0.0001452,2]
[332748744,1721501457982,-500.0,0.0001452,2]
[332748745,1721501457991,-500.0,0.0001452,2]
[332748746,1721501458000,-820.06,0.0001452,2]
[332748747,1721501458009,-500.0,0.0001452,2]
[332748748,1721501458019,-500.0,0.0001452,2]
[332748749,1721501458028,-500.0,0.0001452,2]
[332748750,1721501458037,-500.0,0.0001452,2]
[332748751,1721501458046,-877.92,0.0001452,2]
[332748752,1721501458056,-1386.39,0.0001452,2]
[332748753,1721501458065,-850.61,0.0001452,2]
[332748754,1721501458074,-538.12,0.0001452,2]
[332748755,1721501458083,-500.0,0.0001452,2]
[332748756,1721501458093,-2578.48,0.0001452,2]
[332748757,1721501458102,-500.0,0.0001452,2]
[332748758,1721501458111,-582.80298837,0.0001452,2]
[332748759,1721501458121,-500.0,0.0001452,2]
[332748760,1721501458130,-519.01,0.0001452,2]
[332748761,1721501458139,-500.0,0.0001452,2]
[332748762,1721501458149,-1782.45,0.0001452,2]
[332748763,1721501458158,-559.3,0.0001452,2]
[332748764,1721501458167,-670.52,0.0001452,2]
[332748765,1721501458177,-500.0,0.0001452,2]
[332748766,1721501458187,-500.0,0.0001452,2]
[332748767,1721501458196,-2257.63,0.0001452,2]
[332748768,1721501458205,-921.09,0.0001452,2]
[332748769,1721501458215,-549.5,0.0001452,2]
[332748770,1721501458224,-3096.21,0.0001452,2]
[332748771,1721501458234,-595.13,0.0001452,2]
[332748772,1721501458243,-504.12320318,0.0001452,2]
[332748773,1721501458252,-500.0,0.0001452,2]
[332748774,1721501458261,-1171.4,0.0001452,2]
[332748775,1721501458270,-500.0,0.0001452,2]
[332748776,1721501458280,-500.0,0.0001452,2]
[332748777,1721501458290,-599.45,0.0001452,2]
[332748778,1721501458299,-500.0,0.0001452,2]
[332748779,1721501458309,-714.05,0.0001452,2]
[332748780,1721501458318,-3478.77,0.0001452,2]
[332748781,1721501458327,-929.7,0.0001452,2]
[332748782,1721501458336,-500.0,0.0001452,2]
[332748783,1721501458345,-500.0,0.0001452,2]
[332748784,1721501458355,-1051.01,0.0001452,2]
[332748785,1721501458367,-819.96,0.0001452,2]
[332748786,1721501458377,-500.0,0.0001452,2]
[332748787,1721501458386,-620.43,0.0001452,2]
[332748788,1721501458395,-500.0,0.0001452,2]
[332748789,1721501458406,-644.82,0.0001452,2]
[332748790,1721501458416,-500.0,0.0001452,2]
[332748791,1721501458425,-1176.28,0.0001452,2]
[332748792,1721501458436,-500.0,0.0001452,2]
[332748793,1721501458446,-500.0,0.0001452,2]
[332748794,1721501458455,-500.0,0.0001452,2]
[332748795,1721501458464,-1042.91,0.0001452,2]
[332748796,1721501458473,-500.0,0.0001452,2]
[332748797,1721501458483,-688.18,0.0001452,2]
[332748798,1721501458492,-500.0,0.0001452,2]
[332748799,1721501458501,-521.161017,0.0001452,2]
[332748800,1721501458510,-521.161017,0.0001452,2]
[332748801,1721501458520,-612.0,0.0001452,2]
[332748802,1721501458529,-539.8,0.0001452,2]
[332748803,1721501458539,-521.161017,0.0001452,2]
[332748804,1721501458548,-521.161017,0.0001452,2]
[332748805,1721501458558,-500.0,0.0001452,2]
[332748806,1721501458568,-208.87,0.0001452,2]
[332748807,1721501458577,-500.0,0.0001452,2]
[332748808,1721501458587,-609.35,0.0001452,2]
[332748809,1721501458596,-500.0,0.0001452,2]
[332748810,1721501458605,-500.0,0.0001452,2]
[332748811,1721501458615,-500.0,0.0001452,2]
[332748812,1721501458625,-1890.28,0.0001452,2]
[332748813,1721501458634,-595.19,0.0001452,2]
[332748814,1721501458644,-500.0,0.0001452,2]
[332748815,1721501458653,-897.56,0.0001452,2]
[332748816,1721501458663,-1463.89,0.0001452,2]
[332748817,1721501458672,-4286.48,0.0001452,2]
[332748818,1721501458682,-575.81,0.0001452,2]
[332748819,1721501458693,-1468.94,0.0001452,2]
[332748820,1721501458704,-813.45,0.0001452,2]
[332748821,1721501458715,-656.43,0.0001452,2]
[332748822,1721501458725,-558.31,0.0001452,2]
[332748823,1721501458735,-791.71,0.0001452,2]
[332748824,1721501458746,-1282.95,0.0001452,2]
[332748825,1721501458758,-500.0,0.0001452,2]